[Event "Irish International Open 2019"]
[Site "Dublin"]
[Date "2019.04.22"]
[Round "9.12"]
[White "Melaugh, Gavin"]
[Black "Thorarinsson, Pall A."]
[Result "1/2-1/2"]
[ECO "B06"]
[WhiteElo "2109"]
[BlackElo "2246"]
[Annotator "NA"]
[PlyCount "73"]
[EventDate "2019.02.28"]
[EventType "swiss"]
[EventCountry "IRL"]
[SourceTitle "playchess.com"]
[Source "ChessBase"]
[SourceQuality "1"]
[TimeControl "5400+30"]

1. e4 {[%emt 0:03:46]} g6 {[%emt 0:00:12]} 2. d4 {[%emt 0:00:12]} Bg7 {[%emt 0:00:30]} 3. Nc3 {[%emt 0:01:34]} d6 {[%emt 0:00:10]} 4. Be3 {[%emt 0:00:16]} a6 {[%emt 0:01:46]} 5. Qd2 {[%emt 0:02:35]} Nd7 {[%emt 0:01:57]} 6. f3 {[%emt 0:02:07]} b5 {[%emt 0:01:49]} 7. a3 {[%emt 0:00:45]} Bb7 {[%emt 0:00:39]} 8. g4 {[%emt 0:02:53]} c5 {[%emt 0:03:00]} 9. Nge2 {[%emt 0:02:27]} Rc8 {[%emt 0:10:50]} 10. h4 {[%emt 0:07:38]} h5 {[%emt 0:01:39]} 11. gxh5 $11 {[%emt 0:02:44]} cxd4 {[%emt 0:03:53]} 12. Bxd4 {[%emt 0:10:13]} Bxd4 {[%emt 0:00:59]} 13. Nxd4 {[%emt 0:05:32]} Rxh5 {[%emt 0:00:24]} 14. Bh3 {[%emt 0:02:47]} e5 {[%emt 0:03:18]} 15. Ndxb5 {[%emt 0:16:25]} axb5 {[%emt 0:02:45]} 16. Nxb5 {[%emt 0:02:03]} Qxh4+ {[%emt 0:03:22]} 17. Ke2 {[%emt 0:04:11]} Qf6 {[%emt 0:28:59]} 18. Nxd6+ {[%emt 0:10:33]} Ke7 {[%emt 0:03:43]} 19. Bxd7 {[%emt 0:13:55]} Rd8 {[%emt 0:22:27]} 20. Rxh5 {[%emt 0:02:22]} Rxd7 {[%emt 0:00:01]} 21. Nf5+ {[%emt 0:00:17]} gxf5 {[%emt 0:00:24]} 22. Qb4+ {[%emt 0:00:10]} Ke8 {[%emt 0:01:02]} 23. Rxf5 {[%emt 0:00:57]} Qh6 {[%emt 0:01:40]} 24. Rxe5+ {[%emt 0:04:21]} Ne7 {[%emt 0:00:02]} 25. Rxe7+ {[%emt 0:01:08]} Rxe7 {[%emt 0:00:07]} 26. Rd1 {[%emt 0:00:27]} Qh2+ {[%emt 0:03:51]} 27. Ke3 {[%emt 0:00:00]} Qh6+ {[%emt 0:00:39]} 28. Ke2 {[%emt 0:00:14]} Qh2+ {[%emt 0:01:23]} 29. Ke3 {[%emt 0:00:21]} Qh6+ {[%emt 0:00:33]} 30. Ke2 {[%emt 0:00:50]} Qh2+ {[%emt 0:00:36]} 31. Ke3 {[%emt 0:00:24]} Qh6+ {[%emt 0:00:28]} 32. Ke2 {[%emt 0:00:42]} Qh2+ {[%emt 0:01:07]} 33. Ke3 {[%emt 0:00:37]} Qh6+ {[%emt 0:00:42]} 34. Kf2 {[%emt 0:00:39]} Qh2+ {[%emt 0:00:22]} 35. Ke3 {[%emt 0:00:32]} Qh6+ {[%emt 0:00:07]} 36. Kf2 {[%emt 0:00:10]} Qh2+ {[%emt 0:00:31]} 37. Ke3 {[%emt 0:01:07]} 1/2-1/2

[Event "Irish International Open 2019"]
[Site "Dublin"]
[Date "2019.04.22"]
[Round "9.13"]
[White "Doyle, Hugh"]
[Black "Mihalik, Agoston"]
[Result "1/2-1/2"]
[ECO "A13"]
[WhiteElo "2042"]
[BlackElo "2203"]
[Annotator "NA"]
[PlyCount "50"]
[EventDate "2019.02.28"]
[EventType "swiss"]
[EventCountry "IRL"]
[SourceTitle "playchess.com"]
[Source "ChessBase"]
[SourceQuality "1"]
[TimeControl "5400+30"]

1. Nf3 {[%emt 0:00:00]} c5 {[%emt 0:00:00]} 2. g3 {[%emt 0:00:00]} d5 {[%emt 0:00:00]} 3. c4 {[%emt 0:00:00]} d4 {[%emt 0:00:19]} 4. Bg2 {[%emt 0:00:11]} Nf6 {[%emt 0:01:02]} 5. e3 {[%emt 0:00:37]} e6 {[%emt 0:00:33]} 6. exd4 {[%emt 0:00:28]} cxd4 {[%emt 0:00:07]} 7. O-O {[%emt 0:00:16]} Nc6 {[%emt 0:00:45]} 8. d3 {[%emt 0:02:49]} Bd6 {[%emt 0:00:12]} 9. Na3 {[%emt 0:07:33]} e5 {[%emt 0:14:26]} 10. Nc2 {[%emt 0:00:54]} a5 {[%emt 0:00:48]} 11. Rb1 {[%emt 0:09:10]} O-O {[%emt 0:00:52]} 12. b3 {[%emt 0:06:55]} Rb8 {[%emt 0:09:13]} 13. Na3 {[%emt 0:12:45]} Nd7 {[%emt 0:15:32]} 14. Nb5 {[%emt 0:00:44]} Nc5 {[%emt 0:00:14]} 15. a3 {[%emt 0:12:52]} Na6 {[%emt 0:11:39]} 16. Re1 {[%emt 0:09:45]} Bg4 {[%emt 0:09:31]} 17. Nxd6 {[%emt 0:01:43]} Qxd6 {[%emt 0:01:48]} 18. b4 {[%emt 0:00:06]} axb4 {[%emt 0:05:47]} 19. axb4 {[%emt 0:00:06]} b5 {[%emt 0:00:19]} 20. cxb5 {[%emt 0:09:47]} Rxb5 {[%emt 0:00:59]} 21. Qa4 {[%emt 0:00:05]} Rxb4 {[%emt 0:02:07]} 22. Ba3 {[%emt 0:15:03]} Rxa4 {[%emt 0:02:12]} 23. Bxd6 {[%emt 0:00:04]} Rd8 {[%emt 0:01:54]} 24. Nxe5 {[%emt 0:02:39]} Nxe5 {[%emt 0:01:22]} 25. Rxe5 {[%emt 0:00:34]} Be6 {[%emt 0:08:03]} 1/2-1/2

[Event "Irish International Open 2019"]
[Site "Dublin"]
[Date "2019.04.22"]
[Round "9.14"]
[White "Daly, Colm"]
[Black "Melaugh, Shane"]
[Result "1-0"]
[ECO "A10"]
[WhiteElo "2278"]
[BlackElo "2105"]
[Annotator "NA"]
[PlyCount "121"]
[EventDate "2019.02.28"]
[EventType "swiss"]
[EventCountry "IRL"]
[SourceTitle "playchess.com"]
[Source "ChessBase"]
[SourceQuality "1"]
[TimeControl "5400+30"]

1. Nf3 {[%emt 1:30:30]} e6 {[%emt 0:04:02]} 2. g3 {[%emt 0:00:00]} f5 {[%emt 0:01:31]} 3. Bg2 {[%emt 0:00:00]} Nf6 {[%emt 0:00:05]} 4. c4 {[%emt 0:00:00]} Be7 {[%emt 0:00:20]} 5. O-O {[%emt 0:00:00]} O-O {[%emt 0:00:09]} 6. Nc3 {[%emt 0:00:00]} d6 {[%emt 0:00:17]} 7. d3 {[%emt 0:00:00]} Nc6 {[%emt 0:00:20]} 8. Rb1 {[%emt 0:00:00]} a5 {[%emt 0:01:51]} 9. a3 {[%emt 0:00:00]} Qe8 {[%emt 0:07:01] A10: English Opening: Unusual Replies for Black} 10. b4 {[%emt 0:00:00]} axb4 {[%emt 0:02:14]} 11. axb4 {[%emt 0:00:00]} e5 {[%emt 0:00:29]} (11... Qh5 12. b5 Nd8 13. Qb3 Nf7 14. Bb2 Ng4 15. h3 Nge5 16. Nxe5 Nxe5 17. f4 {1-0 (87) Baldauf,M (2398)-Schwabeneder,F (2350) Austria 2015}) 12. Bg5 {[%emt 0:00:00]} Be6 {[%emt 0:01:01]} 13. b5 $146 {[%emt 0:00:00]} ({Predecessor:} 13. Nd2 Qh5 14. Bxf6 Bxf6 15. b5 Nd8 16. Nd5 Rc8 17. Ra1 {1-0 (45) Szucs,V (2152)-Tomka,J (2099) Slovakia 2012}) 13... Nd8 {[%emt 0:10:06]} 14. Nd2 {[%emt 0:00:00]} c6 {[%emt 0:01:46]} 15. Ra1 {[%emt 0:00:00]} Rxa1 {[%emt 0:00:15]} 16. Qxa1 {[%emt 0:00:00]} Qh5 {[%emt 0:00:05]} 17. Bxf6 {[%emt 0:00:00]} Rxf6 {[%emt 0:01:13]} 18. Rb1 {[%emt 0:00:00]} Rh6 {[%emt 0:00:43]} 19. Nf1 {[%emt 0:00:00]} e4 {[%emt 0:02:26]} (19... Qe8 $14) 20. bxc6 {[%emt 0:00:00]} bxc6 $16 {[%emt 0:00:16]} 21. Qa7 {[%emt 0:00:00]} Bf6 {[%emt 0:00:45]} 22. Rb8 {[%emt 0:00:00]} Qe8 {[%emt 0:08:13]} 23. Qc7 {[%emt 0:00:00]} Be7 {[%emt 0:02:26]} 24. dxe4 {[%emt 0:00:00]} Bxc4 {[%emt 0:00:27]} 25. exf5 {[%emt 0:00:00]} d5 {[%emt 0:00:04]} 26. Ne3 {[%emt 0:00:00]} Rd6 {[%emt 0:02:17]} 27. f6 {[%emt 0:00:00]} Rxf6 {[%emt 0:00:55]} 28. Bxd5+ {[%emt 0:00:00]} cxd5 {[%emt 0:01:55]} 29. Ncxd5 {[%emt 0:00:00]} Bxd5 {[%emt 0:00:11]} 30. Nxd5 {[%emt 0:00:00]} Kf7 {[%emt 0:00:39]} 31. Nxf6 {[%emt 0:00:00]} gxf6 {[%emt 0:00:16]} 32. Qc4+ {[%emt 0:00:00]} Kf8 {[%emt 0:00:52]} 33. Qd5 {[%emt 0:00:00]} Kg7 {[%emt 0:00:46]} 34. e3 {[%emt 0:00:00]} Qf8 {[%emt 0:01:11]} 35. h4 {[%emt 0:00:00]} Bd6 {[%emt 0:03:33]} 36. Ra8 {[%emt 0:00:00]} Qe7 {[%emt 0:00:15]} 37. Qd4 {[%emt 0:00:00]} Kf7 {[%emt 0:11:08]} 38. Ra7 {[%emt 0:00:00]} Bc7 {[%emt 0:00:30]} 39. Qc4+ {[%emt 0:00:00]} Ne6 {[%emt 0:00:10]} 40. Ra6 {[%emt 0:00:00]} Qd7 {[%emt 0:07:02]} 41. Rxe6 {[%emt 0:00:00]} Qxe6 {[%emt 0:00:28]} 42. Qxc7+ {[%emt 0:00:00]} Kg6 {[%emt 0:00:37]} 43. Qf4 {[%emt 0:00:00]} h5 {[%emt 0:00:45]} 44. Kg2 {[%emt 0:00:00]} Kg7 {[%emt 0:00:51]} 45. e4 {[%emt 0:00:00]} Qc6 {[%emt 0:00:38]} 46. Qf5 {[%emt 0:00:00]} Kh6 {[%emt 0:00:17]} 47. Kh2 {[%emt 0:00:00]} Qb6 {[%emt 0:00:10]} 48. e5 {[%emt 0:00:00]} fxe5 {[%emt 0:00:07]} 49. Qg5+ {[%emt 0:00:00]} Kh7 {[%emt 0:00:04]} 50. Qxh5+ {[%emt 0:00:00]} Kg8 {[%emt 0:00:05]} 51. Qf5 {[%emt 0:00:00]} e4 {[%emt 0:00:14]} 52. Kh3 {[%emt 0:00:00]} Qb1 {[%emt 0:00:22]} 53. Kg4 {[%emt 0:00:00]} Qc2 {[%emt 0:00:08]} 54. h5 {[%emt 0:00:00]} Qe2+ {[%emt 0:00:14]} 55. Kh4 {[%emt 0:00:00]} Qc4 {[%emt 0:00:26]} 56. g4 {[%emt 0:00:00]} Qd4 {[%emt 0:00:24]} 57. h6 {[%emt 0:00:00]} Kh8 {[%emt 0:00:21]} 58. Kh5 {[%emt 0:00:00]} Qa7 {[%emt 0:00:45]} 59. Qe5+ {[%emt 0:00:00]} Kg8 {[%emt 0:00:09]} 60. Qe8+ {[%emt 0:00:00]} Kh7 {[%emt 0:00:11]} 61. Qxe4+ {[%emt 0:00:00]} 1-0

[Event "Irish International Open 2019"]
[Site "Dublin"]
[Date "2019.04.22"]
[Round "9.15"]
[White "Schut, Han"]
[Black "Reprun, Nadejda"]
[Result "1-0"]
[ECO "B12"]
[WhiteElo "2173"]
[BlackElo "1995"]
[Annotator "NA"]
[PlyCount "73"]
[EventDate "2019.02.28"]
[EventType "swiss"]
[EventCountry "IRL"]
[SourceTitle "playchess.com"]
[Source "ChessBase"]
[SourceQuality "1"]
[TimeControl "5400+30"]

1. e4 {[%emt 0:00:00]} c6 {[%emt 0:00:00]} 2. d4 {[%emt 0:00:00]} d5 {[%emt 0:00:00]} 3. e5 {[%emt 0:00:00]} c5 {[%emt 0:00:00]} 4. Nf3 {[%emt 0:01:18]} e6 {[%emt 0:00:01]} 5. c3 {[%emt 0:00:20]} Nc6 {[%emt 0:00:04]} 6. Bd3 {[%emt 0:00:20]} Nge7 {[%emt 0:01:39]} 7. O-O {[%emt 0:02:09]} Ng6 {[%emt 0:00:55]} 8. g3 {[%emt 0:00:41]} cxd4 {[%emt 0:05:56]} 9. cxd4 {[%emt 0:00:15]} Bb4 {[%emt 0:07:40]} 10. a3 {[%emt 0:01:50]} Ba5 {[%emt 0:01:22]} 11. h4 {[%emt 0:07:49]} Nge7 {[%emt 0:02:40]} 12. Nc3 {[%emt 0:06:40]} Bxc3 {[%emt 0:04:59]} 13. bxc3 {[%emt 0:00:02]} Na5 $16 {[%emt 0:00:58]} 14. a4 {[%emt 0:11:24]} Bd7 {[%emt 0:01:39]} 15. Ba3 {[%emt 0:02:05]} Rc8 {[%emt 0:01:23]} 16. Bb4 {[%emt 0:07:16]} Nc4 {[%emt 0:01:40]} 17. Qb1 {[%emt 0:02:48]} b6 {[%emt 0:01:28]} 18. Bxc4 {[%emt 0:04:02]} Rxc4 {[%emt 0:07:25]} 19. a5 {[%emt 0:00:47]} Nc6 {[%emt 0:03:02]} 20. Nd2 {[%emt 0:02:42]} Rxb4 {[%emt 0:00:04]} 21. cxb4 {[%emt 0:00:07]} Nxd4 {[%emt 0:00:03]} 22. Qb2 {[%emt 0:02:02]} Ne2+ {[%emt 0:04:06]} 23. Kh2 {[%emt 0:01:04]} Bb5 {[%emt 0:00:08]} 24. Rfe1 {[%emt 0:05:23]} Nf4 {[%emt 0:03:52]} 25. Qd4 {[%emt 0:04:18]} Ng6 {[%emt 0:02:10]} 26. axb6 {[%emt 0:03:08]} axb6 {[%emt 0:00:08]} 27. Ra7 {[%emt 0:01:53]} O-O {[%emt 0:01:15]} 28. Rb7 {[%emt 0:01:44]} f6 {[%emt 0:03:43]} 29. Qxb6 {[%emt 0:03:28]} Qxb6 {[%emt 0:00:11]} 30. Rxb6 {[%emt 0:00:02]} fxe5 {[%emt 0:00:12]} 31. f3 {[%emt 0:03:03]} Bd3 {[%emt 0:02:22]} 32. h5 {[%emt 0:01:39]} Ne7 {[%emt 0:02:58]} 33. Rxe6 {[%emt 0:00:43]} e4 {[%emt 0:00:25]} 34. Rxe7 {[%emt 0:01:33]} exf3 {[%emt 0:00:05]} 35. Re8 {[%emt 0:01:13]} f2 {[%emt 0:00:52]} 36. Rxf8+ {[%emt 0:00:07]} Kxf8 {[%emt 0:00:02]} 37. Rc1 {[%emt 0:03:11]} 1-0

[Event "Irish International Open 2019"]
[Site "Dublin"]
[Date "2019.04.22"]
[Round "9.16"]
[White "Duffy, Seamus"]
[Black "Moran, Stephen"]
[Result "0-1"]
[ECO "A01"]
[WhiteElo "1921"]
[BlackElo "2165"]
[Annotator "NA"]
[PlyCount "102"]
[EventDate "2019.02.28"]
[EventType "swiss"]
[EventCountry "IRL"]
[SourceTitle "playchess.com"]
[Source "ChessBase"]
[SourceQuality "1"]
[TimeControl "5400+30"]

1. b3 {[%emt 0:00:00]} e5 {[%emt 0:00:00]} 2. Bb2 {[%emt 0:00:00]} Nc6 {[%emt 0:00:00]} 3. e3 {[%emt 0:00:00]} Nf6 {[%emt 0:00:10]} 4. Bb5 {[%emt 0:00:06]} Bd6 {[%emt 0:00:36]} 5. Na3 {[%emt 0:01:13]} Na5 {[%emt 0:00:32]} 6. Nc4 {[%emt 0:01:59]} Nxc4 {[%emt 0:00:12]} 7. Bxc4 {[%emt 0:00:05]} O-O {[%emt 0:05:07]} 8. Ne2 {[%emt 0:00:38]} c6 {[%emt 0:02:39]} 9. Ng3 {[%emt 0:00:10]} Bc7 {[%emt 0:00:44]} 10. d4 {[%emt 0:01:14]} exd4 {[%emt 0:11:28]} 11. Qxd4 {[%emt 0:01:11]} d5 {[%emt 0:01:02]} 12. Bd3 {[%emt 0:01:51]} Re8 {[%emt 0:13:16]} 13. Qh4 {[%emt 0:01:21]} Ne4 {[%emt 0:04:59]} 14. Qxd8 {[%emt 0:08:12]} Bxd8 {[%emt 0:00:06]} 15. Bxe4 {[%emt 0:01:11]} dxe4 {[%emt 0:00:07]} 16. O-O-O {[%emt 0:00:06]} Bh4 {[%emt 0:12:04]} 17. Rd4 {[%emt 0:05:58]} f5 {[%emt 0:13:14]} 18. Rhd1 {[%emt 0:01:45]} g6 {[%emt 0:06:04]} 19. Rd6 {[%emt 0:03:57]} Be6 {[%emt 0:00:58]} 20. c4 {[%emt 0:04:22]} Kf7 {[%emt 0:00:49]} 21. R6d2 {[%emt 0:01:37]} Rad8 {[%emt 0:01:20]} 22. Nf1 {[%emt 0:01:15]} Rxd2 {[%emt 0:01:39]} 23. Rxd2 {[%emt 0:00:28]} Rd8 {[%emt 0:00:21]} 24. g3 {[%emt 0:02:52]} Be7 {[%emt 0:00:08]} 25. Kc2 {[%emt 0:03:24]} h5 {[%emt 0:03:40]} 26. h4 {[%emt 0:03:07]} g5 {[%emt 0:01:14]} 27. hxg5 {[%emt 0:00:58]} Bxg5 {[%emt 0:00:23]} 28. Rxd8 {[%emt 0:00:57]} Bxd8 {[%emt 0:00:05]} 29. Be5 {[%emt 0:00:19]} Kg6 {[%emt 0:00:18]} 30. Kd2 {[%emt 0:02:02]} Kg5 {[%emt 0:01:01]} 31. Ke2 {[%emt 0:06:19]} b5 {[%emt 0:06:11]} 32. cxb5 {[%emt 0:02:13]} cxb5 {[%emt 0:00:05]} 33. Nd2 {[%emt 0:01:19]} Bd5 {[%emt 0:04:05]} 34. f3 {[%emt 0:10:39]} a6 {[%emt 0:04:21]} 35. fxe4 {[%emt 0:04:23]} fxe4 {[%emt 0:00:06]} 36. Bd6 {[%emt 0:01:26]} Bf6 {[%emt 0:00:18]} 37. a4 {[%emt 0:03:57]} bxa4 {[%emt 0:00:18]} 38. bxa4 {[%emt 0:00:08]} Kg4 {[%emt 0:00:43]} 39. Bc7 {[%emt 0:01:40]} Bc3 {[%emt 0:00:35]} 40. Bd6 {[%emt 0:03:51]} Kf5 {[%emt 0:00:10]} 41. Nb1 {[%emt 0:03:53]} Bc4+ {[%emt 0:00:31]} 42. Kf2 {[%emt 0:00:46]} Ba5 {[%emt 0:00:58]} 43. Na3 {[%emt 0:04:04]} Bd3 {[%emt 0:00:22]} 44. Bf8 {[%emt 0:00:33]} Bc7 {[%emt 0:00:18]} 45. Bb4 {[%emt 0:02:10]} Kg4 {[%emt 0:00:07]} 46. Bc5 {[%emt 0:01:29]} Bxg3+ {[%emt 0:00:16]} 47. Kg2 {[%emt 0:00:04]} h4 {[%emt 0:00:15]} 48. Kg1 {[%emt 0:02:32]} h3 {[%emt 0:00:13]} 49. a5 {[%emt 0:00:20]} h2+ {[%emt 0:00:12]} 50. Kg2 {[%emt 0:00:21]} Bf1+ {[%emt 0:00:43]} 51. Kh1 {[%emt 0:00:20]} Kh3 {[%emt 0:00:06]} 0-1

[Event "Irish International Open 2019"]
[Site "Dublin"]
[Date "2019.04.22"]
[Round "9.17"]
[White "Buonanno, Raffaele"]
[Black "Flynn, Jacob"]
[Result "0-1"]
[ECO "A68"]
[WhiteElo "2091"]
[BlackElo "2011"]
[Annotator "NA"]
[PlyCount "88"]
[EventDate "2019.02.28"]
[EventType "swiss"]
[EventCountry "IRL"]
[SourceTitle "playchess.com"]
[Source "ChessBase"]
[SourceQuality "1"]
[TimeControl "5400+30"]

1. d4 {[%emt 0:00:52]} Nf6 {[%emt 0:00:00]} 2. c4 {[%emt 0:00:30]} c5 {[%emt 0:00:00]} 3. d5 {[%emt 0:00:30]} e6 {[%emt 0:00:00]} 4. Nc3 {[%emt 0:00:03]} exd5 {[%emt 0:00:00]} 5. cxd5 {[%emt 0:00:05]} d6 {[%emt 0:00:00]} 6. e4 {[%emt 0:00:04]} g6 {[%emt 0:00:11]} 7. f4 {[%emt 0:00:08]} Bg7 {[%emt 0:00:19]} 8. Nf3 {[%emt 0:00:06]} O-O {[%emt 0:02:01]} 9. Be2 {[%emt 0:00:42]} Bg4 {[%emt 0:15:11]} 10. O-O {[%emt 0:00:07]} Nbd7 {[%emt 0:02:09]} 11. h3 $14 {[%emt 0:00:22]} Bxf3 {[%emt 0:00:04]} 12. Bxf3 {[%emt 0:00:09]} a6 {[%emt 0:00:54]} 13. a4 {[%emt 0:00:04]} Re8 {[%emt 0:06:24]} 14. g4 {[%emt 0:01:51]} h6 {[%emt 0:02:45]} 15. Be3 {[%emt 0:04:12]} Rb8 {[%emt 0:06:20]} 16. Qd2 {[%emt 0:01:45]} b5 {[%emt 0:09:17]} 17. axb5 {[%emt 0:00:08]} axb5 {[%emt 0:00:01]} 18. e5 {[%emt 0:03:47]} b4 {[%emt 0:03:44]} 19. Ne4 {[%emt 0:01:49]} Nxe4 {[%emt 0:00:42]} 20. Bxe4 {[%emt 0:00:09]} dxe5 {[%emt 0:00:28]} 21. f5 {[%emt 0:00:08]} g5 {[%emt 0:03:36]} 22. d6 {[%emt 0:01:14]} Qb6 {[%emt 0:10:45]} 23. h4 {[%emt 0:02:45]} Nf6 {[%emt 0:00:57]} 24. Bf3 {[%emt 0:00:05]} e4 {[%emt 0:03:20]} 25. Be2 {[%emt 0:00:02]} b3 {[%emt 0:05:20]} 26. hxg5 {[%emt 0:00:23]} hxg5 {[%emt 0:00:02]} 27. Bxg5 {[%emt 0:00:39]} e3 {[%emt 0:00:19]} 28. Qd3 {[%emt 0:01:28]} Ne4 {[%emt 0:02:52]} 29. f6 {[%emt 0:02:36]} Nxg5 {[%emt 0:04:02]} 30. fxg7 {[%emt 0:00:05]} c4 {[%emt 0:02:04]} 31. Qf5 {[%emt 0:03:15]} Qxd6 {[%emt 0:00:20]} 32. Kg2 {[%emt 0:11:01]} Qe5 {[%emt 0:01:47]} 33. Bxc4 {[%emt 0:01:47]} Qxb2+ {[%emt 0:06:39]} 34. Kh1 {[%emt 0:01:57]} Qxg7 {[%emt 0:00:18]} 35. Ra5 {[%emt 0:03:32]} e2 {[%emt 0:03:38]} 36. Bxe2 {[%emt 0:01:18]} Rxe2 {[%emt 0:00:21]} 37. Qxg5 {[%emt 0:00:03]} b2 {[%emt 0:02:53]} 38. Rb1 {[%emt 0:01:14]} Rc8 {[%emt 0:01:55]} 39. Rg1 {[%emt 0:04:22]} Qxg5 {[%emt 0:01:01]} 40. Rb5 {[%emt 0:54:43]} Qe5 41. Rxe5 {[%emt 0:00:00]} Kf8 {[%emt 0:00:39]} 42. Rb5 {[%emt 0:00:00]} Rc1 {[%emt 0:00:16]} 43. Rb8+ {[%emt 0:00:00]} Kg7 {[%emt 0:00:11]} 44. Rb6 {[%emt 0:00:00]} Ree1 {[%emt 0:00:12]} 0-1

[Event "Irish International Open 2019"]
[Site "Dublin"]
[Date "2019.04.22"]
[Round "9.18"]
[White "McMorrow, John"]
[Black "Carroll, Peter"]
[Result "0-1"]
[ECO "B90"]
[WhiteElo "2058"]
[BlackElo "2006"]
[Annotator "NA"]
[PlyCount "128"]
[EventDate "2019.02.28"]
[EventType "swiss"]
[EventCountry "IRL"]
[SourceTitle "playchess.com"]
[Source "ChessBase"]
[SourceQuality "1"]
[TimeControl "5400+30"]

1. e4 {[%emt 0:00:00]} c5 {[%emt 0:00:00]} 2. Nf3 {[%emt 0:00:00]} d6 {[%emt 0:00:00]} 3. d4 {[%emt 0:00:00]} cxd4 {[%emt 0:00:00]} 4. Nxd4 {[%emt 0:00:00]} Nf6 {[%emt 0:00:00]} 5. Nc3 {[%emt 0:00:00]} a6 {[%emt 0:00:00]} 6. Be3 {[%emt 0:00:03]} e5 {[%emt 0:00:00]} 7. Nb3 {[%emt 0:00:06]} Be6 {[%emt 0:00:00]} 8. f3 {[%emt 0:00:12]} Be7 {[%emt 0:00:00]} 9. Qd2 {[%emt 0:00:07]} O-O {[%emt 0:00:00]} 10. O-O-O {[%emt 0:00:09]} Nbd7 {[%emt 0:00:00]} 11. g4 {[%emt 0:00:13]} b5 {[%emt 0:00:00]} 12. g5 {[%emt 0:00:18]} b4 {[%emt 0:00:00]} 13. Ne2 {[%emt 0:00:31]} Ne8 {[%emt 0:00:01]} 14. f4 {[%emt 0:00:49]} a5 {[%emt 0:00:01]} 15. f5 {[%emt 0:00:49]} a4 {[%emt 0:00:01]} 16. Nbd4 {[%emt 0:01:52]} exd4 {[%emt 0:00:01]} 17. Nxd4 {[%emt 0:00:14]} b3 {[%emt 0:00:01]} 18. Kb1 {[%emt 0:00:12]} bxc2+ {[%emt 0:00:01]} 19. Nxc2 {[%emt 0:00:15]} Bb3 {[%emt 0:00:02]} 20. axb3 {[%emt 0:00:13]} axb3 {[%emt 0:00:02]} 21. Na3 {[%emt 0:00:20]} Ne5 {[%emt 0:00:01]} 22. h4 {[%emt 0:00:30]} Ra4 {[%emt 0:00:03]} 23. Bd4 {[%emt 0:02:03]} Qa8 {[%emt 0:00:29]} 24. Qe3 {[%emt 0:00:40]} Kh8 {[%emt 0:19:58]} 25. Rh3 {[%emt 0:03:37]} f6 {[%emt 0:02:26]} 26. Be2 {[%emt 0:14:28]} Rb4 {[%emt 0:02:47]} 27. Rg3 {[%emt 0:12:25]} Nc7 {[%emt 0:07:09]} 28. Rc1 {[%emt 0:11:06]} Nb5 {[%emt 0:06:01]} 29. Bxb5 {[%emt 0:00:41]} Rxb5 {[%emt 0:00:15]} 30. Rc3 {[%emt 0:14:17]} Rb4 {[%emt 0:10:25]} 31. Rc7 {[%emt 0:06:20]} Rb7 {[%emt 0:09:18]} 32. Rxb7 {[%emt 0:09:00]} Qxb7 {[%emt 0:08:30]} 33. g6 {[%emt 0:00:11]} h6 {[%emt 0:07:24]} 34. Qe2 {[%emt 0:01:24]} Ra8 {[%emt 0:02:10]} 35. Bc3 {[%emt 0:06:29]} Ra4 {[%emt 0:01:21]} 36. Re3 {[%emt 0:00:30]} Bd8 {[%emt 0:00:44]} 37. Qb5 {[%emt 0:01:06]} Qxb5 {[%emt 0:05:20]} 38. Nxb5 {[%emt 0:00:02]} Bb6 {[%emt 0:00:29]} 39. Re2 {[%emt 0:02:32]} Bc5 {[%emt 0:00:36]} 40. Be1 {[%emt 0:05:58]} Kg8 {[%emt 0:02:59]} 41. Nc3 {[%emt 0:01:01]} Rd4 {[%emt 0:01:24]} 42. Bf2 {[%emt 0:06:57]} Rd3 {[%emt 0:00:47]} 43. Bxc5 {[%emt 0:01:06]} dxc5 {[%emt 0:00:02]} 44. Rh2 {[%emt 0:01:02]} Kf8 {[%emt 0:06:44]} 45. Rh1 {[%emt 0:01:13]} Ke7 {[%emt 0:02:55]} 46. Nd5+ {[%emt 0:01:05]} Kd6 {[%emt 0:00:19]} 47. Kc1 {[%emt 0:00:35]} Nc4 {[%emt 0:01:27]} 48. Rh2 {[%emt 0:00:32]} Rg3 {[%emt 0:00:52]} 49. Nc3 {[%emt 0:00:27]} Rg1+ {[%emt 0:00:23]} 50. Nd1 {[%emt 0:00:05]} Ne3 {[%emt 0:00:30]} 51. Rd2+ {[%emt 0:00:14]} Ke5 {[%emt 0:00:05]} 52. Rd3 {[%emt 0:00:28]} Rxd1+ {[%emt 0:00:08]} 53. Rxd1 {[%emt 0:00:04]} Nxd1 {[%emt 0:00:09]} 54. Kxd1 {[%emt 0:00:01]} Kxe4 {[%emt 0:00:09]} 55. Kd2 {[%emt 0:00:01]} Kxf5 {[%emt 0:00:36]} 56. Kc3 {[%emt 0:00:01]} Ke4 {[%emt 0:00:08]} 57. Kxb3 {[%emt 0:00:04]} f5 {[%emt 0:00:17]} 58. Kc4 {[%emt 0:00:06]} f4 {[%emt 0:00:03]} 59. Kxc5 {[%emt 0:00:03]} f3 {[%emt 0:00:03]} 60. b4 {[%emt 0:00:09]} f2 {[%emt 0:00:03]} 61. b5 {[%emt 0:00:08]} f1=Q {[%emt 0:00:07]} 62. b6 {[%emt 0:00:05]} Kf5 {[%emt 0:00:18]} 63. Kc6 {[%emt 0:00:02]} Kxg6 {[%emt 0:00:22]} 64. b7 {[%emt 0:00:02]} Qf4 {[%emt 0:00:18]} 0-1